Cogmind - Beta 13 *** ADVENTURER MODE // 2024.04.03 @ 16:09:54 Player: jmw150 Result: Destroyed by Autobeam Turret with Autobeam Performance ------------- Evolutions (0) 0 Regions Visited (3) 600 Robots Destroyed (30) 150 Value Destroyed (719) 719 Prototype IDs (2) 40 Alien Tech Used (0) 0 Bonus (0) 0 TOTAL SCORE: 1509 Bonus ------- None Cogmind --------- Core Integrity 0/250 Matter 297/300 Energy 223/250 System Corruption 0% Temperature Cool (50) Movement Rolling (130) Ox2 Location -10/Subcaves Parts ------- > --- POWER (1) -------- Ion Engine > --- PROPULSION (2) --- Subdweller Monowheel Subdweller Monowheel > --- UTILITY (2) ------ Huge Storage Unit Terrain Scanner > --- WEAPON (2) ------- Subdweller Beam Cannon Subdweller Beam Cannon > --- INVENTORY (25) --- Ion Engine Light Ion Engine Light Treads Light Treads Improved Heat Sink Disposable Heat Sink High-capacity Storage Unit High-capacity Matter Pod (200) High-capacity Matter Pod (200) High-capacity Matter Pod (200) Compact Matter Pod (150) Compact Matter Pod (150) Compact Matter Pod (150) Compact Matter Pod (150) Compact Matter Pod (150) Signal Interpreter ECM Suite Tractor Beam Medium Laser Particle Gun Mining Laser Stasis Trap (100%) Peak State ------------ > --- POWER ------------ Light Nuclear Core > --- PROPULSION ------- Subdweller Monowheel Subdweller Monowheel > --- UTILITY ---------- Huge Storage Unit Structural Scanner > --- WEAPON ----------- Particle Gun Subdweller Beam Cannon > --- INVENTORY -------- Ion Engine Ion Engine Light Ion Engine Light Treads Light Treads Subdweller Monowheel Improved Heat Sink Disposable Heat Sink High-capacity Storage Unit High-capacity Matter Pod High-capacity Matter Pod High-capacity Matter Pod Compact Matter Pod Compact Matter Pod Compact Matter Pod Compact Matter Pod Signal Interpreter Terrain Scanner ECM Suite Tractor Beam Medium Laser Mining Laser Stasis Trap [Rating: 16] Favorites ----------- Power Light Nuclear Core Engine Light Ion Engine Power Core Light Nuclear Core Propulsion Light Treads Treads Light Treads Leg Aluminum Leg Wheel Subdweller Monowheel Utility Huge Storage Unit Device Structural Scanner Storage Huge Storage Unit Weapon Assault Rifle Energy Gun Medium Laser Energy Cannon Subdweller Beam Cannon Ballistic Gun Assault Rifle Special Weapon Mining Laser Build | -11 -10 -10 -10 ------- Run | Yrd Mat Min Sub Slots Evolved . | . . . . Power . | . . . . Propulsion . | . . . . Utility . | . . . . Weapon . | . . . . Parts Attached 46 | 6 19 2 19 Power 4 | 1 1 1 1 Engine 3 | 1 1 . 1 Core 1 | . . 1 . Reactor . | . . . . Propulsion 17 | 2 12 . 3 Treads 6 | . 6 . . Leg 2 | . 2 . . Wheel 9 | 2 4 . 3 Hover . | . . . . Flight . | . . . . Utility 9 | 1 4 1 3 Device 5 | . 1 1 3 Storage 4 | 1 3 . . Processor . | . . . . Hackware . | . . . . Protection . | . . . . Artifact . | . . . . Weapon 16 | 2 2 . 12 Energy Gun 3 | 1 . . 2 Energy Cannon 3 | . . . 3 Ballistic Gun 5 | 1 1 . 3 Ballistic Cannon . | . . . . Launcher . | . . . . Special Weapon 5 | . 1 . 4 Impact Weapon . | . . . . Slashing Weapon . | . . . . Piercing Weapon . | . . . . Special Melee Weapon . | . . . . Unidentified Prototypes . | . . . . Parts Lost 5 | . 1 . 4 Power 1 | . . . 1 Propulsion 1 | . 1 . . Utility 1 | . . . 1 Weapon 2 | . . . 2 Highest Loss Streak 2 | . 1 . 2 To Critical Strikes . | . . . . Average Slot Usage (%) 97 | . 87 100 99 Engine 2 | . 14 . . Core 11 | . . 13 13 Treads 20 | . 20 28 17 Wheel 7 | . 6 . 10 Device 12 | . 3 14 13 Storage 14 | . 14 14 14 Energy Gun 5 | . 11 . 5 Energy Cannon 3 | . . . 6 Ballistic Gun 18 | . 15 28 15 Naked Turns . | . . . . Heaviest Build 102 | 12 90 89 102 Greatest Support 40 | 20 40 40 40 Greatest Overweight (x) 8 | 1 8 2 2 Average Overweight (x) 2 | . 2 2 2 Largest Inventory Capacity 25 | 8 25 25 25 Average Capacity 24 | 7 24 25 25 Most Carried 25 | 8 14 25 25 Average Carried 21 | 3 11 22 23 Final Capacity 25 | 8 25 25 25 Final Carried 25 | 6 14 25 22 Class Distribution -------------------- 78% | Mutant 21% | Scavenger-Mutant Dominant Class ---------------- Mutant | -10/Materials Mutant | -10/Mines Mutant | -10/Subcaves Resources | -11 -10 -10 -10 ----------- Run | Yrd Mat Min Sub Matter Collected 1202 | 269 319 289 325 Remotely 255 | . 140 115 . Salvage Created 975 | 69 234 340 332 Parts 68 | 1 18 23 26 Haulers Intercepted . | . . . . Recyclers Shooed 2 | . . 2 . Parts Field Recycled . | . . . . Retrieved Matter . | . . . . Parts Self-Destructed 5 | . . . 5 Prevented . | . . . . Kills | -11 -10 -10 -10 ------- Run | Yrd Mat Min Sub Combat Hostiles Destroyed 24 | . 8 7 9 Guns 18 | . 8 7 3 Cannons 6 | . . . 6 Classes Destroyed 6 | 1 3 1 1 Builder 1 | . . 1 . Recycler 3 | 1 . 2 . Watcher 2 | . 2 . . Swarmer 10 | . 5 3 2 Grunt 7 | . 3 4 . Subdweller 7 | . . . 7 Best Kill Streak 4 | 1 4 4 2 Combat Bots Only 3 | . 3 3 2 Max Kills in Single Turn 2 | 1 1 1 2 Gunslinging . | . . . . Exploded . | . . . . Melee . | . . . . Uniques/NPCs Destroyed . | . . . . Combat | -11 -10 -10 -10 -------- Run | Yrd Mat Min Sub Hostile Shots Fired 149 | . 67 35 47 Missed 40 | . 14 13 13 Damage Taken 1116 | . 385 190 541 Core 253 | . 93 59 101 Absorbed by Shields . | . . . . Ignored by Resistances 332 | . 124 59 149 Core Remaining (%) 100 | 100 . . . Volleys Fired 128 | 3 45 29 51 Largest 2 | 1 2 2 2 Hottest 160 | 20 100 40 160 Shots Fired 208 | 3 78 58 69 Gun 171 | 3 77 58 33 Cannon 15 | . . . 15 Launcher . | . . . . Special 22 | . 1 . 21 Kinetic 132 | 3 44 58 27 Thermal 76 | . 34 . 42 Explosive . | . . . . Electromagnetic . | . . . . Robot Hit Streak 17 | 2 6 17 17 Robot Miss Streak 3 | 1 3 1 1 Penetration Max . | . . . . Secondary Targets . | . . . . Shots Hit Robots 136 | 2 48 46 40 Core Hits 52 | 2 19 17 14 Critical Kills . | . . . . Critical Parts Destroyed 1 | . . 1 . Critical Strikes 6 | . 3 1 2 Burn 4 | . 3 . 1 Destroy 2 | . . 1 1 Melee Attacks . | . . . . Impact . | . . . . Slashing . | . . . . Piercing . | . . . . Sneak Attacks . | . . . . Combat Hostiles . | . . . . Follow-up Attacks . | . . . . Damage Inflicted 1803 | 23 481 510 789 Guns 1431 | 23 476 505 427 Cannons 362 | . . . 362 Explosions . | . . . . Melee . | . . . . Ramming 10 | . 5 5 . Kinetic 1185 | 23 279 505 378 Thermal 608 | . 197 . 411 Explosive . | . . . . Electromagnetic . | . . . . Impact . | . . . . Slashing . | . . . . Piercing . | . . . . Highest Corruption . | . . . . Average Corruption . | . . . . Corruption Purged . | . . . . Corruption Blocked . | . . . . Overload Shots . | . . . . Overflow Damage . | . . . . Projectiles . | . . . . Explosions . | . . . . Melee . | . . . . Knockbacks . | . . . . Impact . | . . . . Kinetic . | . . . . Secondary . | . . . . Self-Inflicted Damage . | . . . . Shots . | . . . . Rammed 1 | . 1 . . Targets Rammed 2 | . 1 1 . Kicked . | . . . . Crushed 1 | . . 1 . Highest Temperature 118 | . 118 24 38 Average Temperature 29 | . 45 5 14 Received Heat Transfer 402 | . 117 108 177 Siege Activations . | . . . . Robots Corrupted . | . . . . Combat Hostiles . | . . . . Parts Fried . | . . . . Impact Corruptions . | . . . . Robots Melted . | . . . . Combat Hostiles . | . . . . Parts Melted 2 | . 1 . 1 Heat Transferred 1517 | . 814 . 703 Parts Sabotaged . | . . . . Parts Stolen . | . . . . Parts Stripped . | . . . . Power Chain Reactions . | . . . . Alert | -11 -10 -10 -10 ------- Run | Yrd Mat Min Sub Peak Influence 232 | 5 232 140 . Initial 15 | . 2 15 . Average 41 | 3 60 31 . Maximum Alert Level 1 | . 1 . . Low Security (%) 96 | 100 91 100 . Level 1 3 | . 8 . . Level 2 . | . . . . Level 3 . | . . . . Level 4 . | . . . . Level 5 . | . . . . High Security . | . . . . Max Security . | . . . . Squads Dispatched 2 | . 2 . . Investigation 2 | . 2 . . Extermination . | . . . . Reinforcement . | . . . . Assault . | . . . . Garrison . | . . . . Intercept . | . . . . Searches Triggered . | . . . . Construction Impeded . | . . . . Haulers Reinforced . | . . . . Active Scanning Responses . | . . . . Cargo Convoy Interrupts . | . . . . Stealth | -11 -10 -10 -10 --------- Run | Yrd Mat Min Sub Distress Signals 1 | . 1 . . Communications Jammed . | . . . . Distress Signals . | . . . . Times Spotted 41 | . 16 7 18 Peak Tracking Total 5 | . 4 3 5 Tactical Retreats 1 | . . . 1 Traps | -11 -10 -10 -10 ------- Run | Yrd Mat Min Sub Traps Triggered . | . . . . Indirectly . | . . . . Trap Hack Attempts . | . . . . Triggered . | . . . . Disarmed 4 | . 4 . . Reprogrammed . | . . . . Reused . | . . . . Traps Extracted . | . . . . Installed . | . . . . Triggered . | . . . . Most Traps Carried 1 | . . 1 1 Machines | -11 -10 -10 -10 ---------- Run | Yrd Mat Min Sub Machines Disabled 2 | . 2 . . Max in Single Turn 1 | . 1 . . Machines Repaired . | . . . . Machines Dismantled . | . . . . Machines Sabotaged . | . . . . Overloaded Fab Kills . | . . . . Hacking | -11 -10 -10 -10 --------- Run | Yrd Mat Min Sub Machines Accessed 3 | . 3 . . Terminals 3 | . 3 . . Fabricators . | . . . . Repair Stations . | . . . . Recycling Units . | . . . . Scanalyzers . | . . . . Garrison Access . | . . . . Total Hacks 13 | . 13 . . Successful 10 | . 10 . . Failed 3 | . 3 . . Catastrophic . | . . . . Database Lockouts . | . . . . Manual . | . . . . Terminals 13 | . 13 . . Fabricators . | . . . . Repair Stations . | . . . . Recycling Units . | . . . . Scanalyzers . | . . . . Garrison Access . | . . . . Terminal Hacks 10 | . 10 . . Record 3 | . 3 . . Prototype ID Bank 1 | . 1 . . Branch Access Points 1 | . 1 . . Alert Level 1 | . 1 . . Disarm Traps 1 | . 1 . . Dispatch Records 2 | . 2 . . Hauler Manifests 1 | . 1 . . Fabricator Hacks . | . . . . Repair Station Hacks . | . . . . Recycling Unit Hacks . | . . . . Scanalyzer . | . . . . Garrison Access Hacks . | . . . . Unauthorized Hacks . | . . . . Terminals . | . . . . Fabricators . | . . . . Repair Stations . | . . . . Recycling Units . | . . . . Scanalyzers . | . . . . Garrison Access . | . . . . Data Cores Recovered . | . . . . Used . | . . . . Hacking Detections 3 | . 3 . . Full Trace Events 2 | . 2 . . Feedback Events . | . . . . Feedback Blocked . | . . . . Robot Schematics Acquired . | . . . . Robots Built . | . . . . Authchips . | . . . . Time . | . . . . Total Robot Build Rating . | . . . . Part Schematics Acquired . | . . . . Parts Built . | . . . . Authchips . | . . . . Time . | . . . . Total Part Build Rating . | . . . . Parts Repaired . | . . . . Time . | . . . . Parts Recycled . | . . . . Recycled Matter . | . . . . Retrieved Matter . | . . . . Retrieved Components . | . . . . Parts Scanalyzed . | . . . . Part Schematics Acquired . | . . . . Parts Damaged . | . . . . Bothacking | -11 -10 -10 -10 ------------ Run | Yrd Mat Min Sub Used RIF Installer . | . . . . Robots Hacked . | . . . . Non-combat . | . . . . Combat . | . . . . Robot Hacks Applied . | . . . . Relay Couplers Released . | . . . . Fabnet Peak Effective % . | . . . . Robots Rewired . | . . . . Allies Hacked . | . . . . Hacks Repelled . | . . . . Allies | -11 -10 -10 -10 -------- Run | Yrd Mat Min Sub Total Allies . | . . . . Largest Group . | . . . . Highest-Rated Group . | . . . . Highest-Rated Ally . | . . . . Total Orders . | . . . . Ally Attacks . | . . . . Total Damage . | . . . . Kills . | . . . . Allies Corrupted . | . . . . Allies Melted . | . . . . Intel | -11 -10 -10 -10 ------- Run | Yrd Mat Min Sub Robot Analysis Total . | . . . . Derelict Logs Recovered 3 | . . 1 2 Drone Launches . | . . . . Drone Recoveries . | . . . . Exploration | -11 -10 -10 -10 ------------- Run | Yrd Mat Min Sub Turns Passed 5746 | 65 998 1555 3128 Spaces Moved 2252 | 52 333 455 1412 Core 4 | 4 . . . Treads 1228 | . 207 455 566 Legs . | . . . . Wheels 1020 | 48 126 . 846 Hover . | . . . . Flight . | . . . . Fastest Speed 50 | 50 80 320 130 Average Speed 232 | 78 248 320 206 Slowest Speed 320 | 100 320 320 320 Overloaded Moves . | . . . . Propulsion Burnouts . | . . . . Robots Hopped . | . . . . Cave-ins Triggered . | . . . . Exploration Rate (%) 44 | 3 47 79 48 Regions Visited 3 Branch Regions 2 Pre-discovered Areas 3 | . . 1 2 Known Exits Taken 1 | . 1 . . Unknown Exits Taken 2 | 1 . 1 . Scrap Searched 5 | . . 1 4 Spaces Dug 1 | . 1 . . Terrain Destroyed 2 | . 1 . 1 Melee . | . . . . Projectile 2 | . 1 . 1 AOE . | . . . . Terrain Rammed . | . . . . Walls Destroyed . | . . . . Machines Disabled . | . . . . Actions | -11 -10 -10 -10 --------- Run | Yrd Mat Min Sub Total 2523 | 72 428 501 1522 Wait 6 | . 1 . 5 Move 2249 | 51 332 454 1412 Hop . | . . . . Pick Up 58 | 12 16 13 17 Fast Attach . | . . . . Attach 27 | 6 11 . 10 Detach 10 | . 8 . 2 Swap 19 | . 8 2 9 Drop 24 | . 6 2 16 Fire 128 | 3 45 29 51 Melee . | . . . . Ram . | . . . . Kick . | . . . . Crush 2 | . 1 1 . Escape Stasis . | . . . . Rewire . | . . . . Trap . | . . . . Miscellaneous . | . . . . Route ------- -11/Scrapyard -10/Materials -10/Mines (discovered 2 exits: [*Mat] / [*Sub]) -10/Subcaves History --------- Turn | Location | Event 13 | -11/Scrapyard | Discovered new exit (range 13) 66 | -11/Scrapyard | Entered Materials 187 | -10/Materials | Discovered new exit (range 12) 309 | -10/Materials | Build established: Mutant 981 | -10/Materials | Identified exit to Mines 1064 | -10/Materials | Entered Mines 1073 | -10/Mines | Core integrity fell below 50% 1442 | -10/Mines | Learned Materials emergency access door positions 1654 | -10/Mines | Discovered new exit (range 4) 2015 | -10/Mines | Found a hidden stash of uninstalled traps 2479 | -10/Mines | Learned location of Storage (-7) 2593 | -10/Mines | Discovered new exit (range 7) 2619 | -10/Mines | Entered Subcaves 2642 | -10/Subcaves | Learned location of Recycling (-7) 3037 | -10/Subcaves | Learned 2 Materials zone layouts 4855 | -10/Subcaves | Build established: Scavenger-Mutant 5513 | -10/Subcaves | Learned location of Zion (-6) 5513 | -10/Subcaves | Met a Zionite searching for "candidates" 5595 | -10/Subcaves | Core integrity fell below 20% 5617 | -10/Subcaves | Shifting Twisted Machinery released Piercing Trap 5719 | -10/Subcaves | A swath of the cavern ceiling suddenly collapsed 5747 | -10/Subcaves | Destroyed by Autobeam Turret with Autobeam Last Messages --------------- For your health and safety might I suggest a trip to Zion?" World map updated: -6/Zion. Lgt. Nuclear Core destroyed. 4G-EX3(R) suffers critical hit (Burn). Structural Scanner destroyed. 4G-EX3(R) destroyed. Acquired 15 matter. Piercing Trap falls loose from the Twisted Machinery. Acquired Sub. Beam Cannon. Y-45 Defender crushed by falling debris. Y-45 Defender destroyed. 13 Matter crushed. A swath of the cavern ceiling suddenly collapses. Acquired 7 matter. Acquired 3 matter. Acquired 7 matter. S-10 Pest destroyed. Map ----- +----------------------------------------------------+ | ???????????????????????????????### #### # | | ????????????????????????????????### ### ## | | ????????????????????? ????########## ### ### | | ?????????????????????????###### #### ## ### | | ?????????????????????????### ### # ## | | ?????????????????????????## ### | | ?????????????????#???????# ### | | ????????????????????????## ## ### | | ???????????????????????## #" ## | | ??????????????????????## ### | | ???????????????#??????# ### ### | | ???????????????##????### ### ## ### | | ???????????????# ????## ## #### ### | | ????????????#??? ??## ##& ##### | | ??????????????????% ?## # %######## | | ???????????????????# #### ###% ### ####?##### | | ???????????????#???# ##%###?###### #?????#### | | ?????????????????# % ## ##????##" ???#???## | | ???????????????# ?##; #????###"&??????## | | ???????????????# # ??##; ##????####" ?????#### | | ???????????????##?##???# #??????#?""?????##### | | ??????????????????????"## #???"?????""????? ?### | | ????????????????????????# #???????????"???????## | | ?????????? & ??#?????# #??????????????????? ? | | ??????????t ### ##??"?????????????????? | | ??????????????# =%[ @ #?????????????????????? | | ??????????????# ss*= #????????????????????? | | ??????????????# &%&% #???????????????????? | | ??????????????# % ???????????? ?????? | | ????????????# % ????????????????? | | ????????????## ### #???????????????? | | ?????????????## # ??? #??????????????? | | ????????????? ##% #??? #??????????????? | | ????????????? # ## ???? % ?????????????? | | ????????????? ? # ????? ????????????? | | ?????????????? ? ???###????? % #????????????? | | ??????????????? # ??????????? #### ##????????????? | | ??????????????????????????????????#??????????????? | | ?????????????????????????????????????????????????? | | ?????????????????????????????????????????????????? | | ?????????????????????????????????????????????????? | | ?????????????????????????????????????????????????? | | ?????????????????????????????????????????????????? | | ?????????????????????????????????????????????????? | | ?????????????????????????????????????????????????? | | ?????????????????????????????????????????????????? | | ?????????????????????????????????????????????????? | | ?????????????????????????????????????????????????? | | ?????????????????????????????????????????????????? | | ?????????????????????????????????????????????????? | +----------------------------------------------------+ Best States ------------- Heat Dissipation 25 Energy Generation 14 Energy Capacity 250 Matter Stores 300 Matter Capacity 300 Sight Range 21 Terrain Scan Range 14 Terrain Scan Density 10 Resistance: KI 20 Resistance: TH 20 Resistance: EX 20 Resistance: EM 20 Resistance: I 20 Resistance: S 20 Resistance: P 20 Evasion (%) 44 Recoil Reduction 2 Offensive Hacking 10 Item Schematics ----------------- None Robot Schematics ------------------ None Fabricated ------------ Nothing Alien Tech Used ----------------- None Achievements -------------- Use The Force Challenges ------------ None Game ------ Seed magos Manual? 1 Play Time 00:55:36 Cumulative 17.7 hours Start 2024.04.02 @ 23:14:45 End 2024.04.03 @ 16:09:54 Sessions 3 Manual Loads 0 Difficulty Adventurer Special Mode None Game No. 3 Rogue 0 Adventurer 3 Explorer 0 Win Type - Total 0 Types 0/0/0/0/0/0/0/0/0 Lore% 2 Gallery% 12 Achievement% 11 Wizard Run 0 Options --------- Layout 1 ASCII 0 Keyboard 0 Movement Arrows Keybinds 0 Fullscreen 1 Font 24/Smallcaps Map View 50x35 Zoom Use 0% Tactical HUD 0 Map Filters NONE Filters NONE Steam 1 RUN: 9b61fce9-f559-4124-b613-a5eb71cd6633